bitfinex/quotes_SOLUSD_20220117
["timestamp","ask_amount","ask_price","bid_price","bid_amount"]
[1642431451641,1.9322499,143.45,143.41,0.25]
[1642431452650,1.9322499,143.46,143.41,0.25]
[1642431455152,1.9322499,143.46,143.4,35.66632279]
[1642431455778,1.9322499,143.46,143.41,0.25]
[1642431455979,1.9322499,143.46,143.41,1.83184206]
[1642431456378,1.9322499,143.46,143.42,1.58184206]
[1642431456579,4.99e-05,143.45,143.44,70.24]
[1642431456779,4.99e-05,143.45,143.44,76.974]
[1642431456982,4.99e-05,143.45,143.44,78.55584206]
[1642431457481,3.61496758,143.49,143.44,78.81584206]
[1642431457682,5.56779599,143.53,143.44,44.50613933]
[1642431457981,5.56779599,143.53,143.45,0.25]
[1642431458180,3.61496758,143.53,143.45,0.25]
[1642431458480,3.61496758,143.53,143.45,10.32]
[1642431459081,27.87446758,143.54,143.45,10.32]
[1642431460085,24.2595,143.54,143.45,10.32]
[1642431460882,24.2595,143.54,143.45,16.32]
[1642431462185,24.2595,143.54,143.45,10.32]
[1642431462388,24.2595,143.54,143.45,16.32]
[1642431463187,24.2595,143.54,143.45,39.004]
[1642431465195,24.2595,143.54,143.45,33.004]
[1642431465393,3.61496758,143.55,143.45,39.004]
[1642431465594,55.41690175,143.56,143.45,109.504]
[1642431465793,3.61496758,143.56,143.45,109.504]
[1642431465992,3.61496758,143.56,143.45,111.08609529]
[1642431466194,3.61496758,143.56,143.45,109.244]
[1642431466592,26.37666758,143.57,143.45,109.244]
[1642431466793,35.44950272,143.55,143.45,109.244]
[1642431466993,35.44950272,143.55,143.45,39.004]
[1642431467196,35.44950272,143.55,143.45,32.754]
[1642431468295,23.1878,143.54,143.45,32.754]
[1642431468494,33.6417,143.54,143.45,32.754]
[1642431469697,33.6417,143.54,143.45,22.684]
[1642431469897,33.6417,143.54,143.42,33.8763]
[1642431470500,33.6417,143.54,143.42,81.74928395]
[1642431470697,33.6417,143.54,143.42,57.94298395]
[1642431471297,37.25666758,143.54,143.42,57.94298395]
[1642431473098,10.09491391,143.52,143.42,57.94298395]
[1642431473299,23.5386,143.51,143.42,57.94298395]
[1642431476603,23.5386,143.51,143.43,0.25]
[1642431477405,23.5386,143.51,143.45,45.47195368]
[1642431478204,3.61496758,143.53,143.46,70.49]
[1642431478605,3.61496758,143.54,143.46,70.49]
[1642431478807,3.61496758,143.54,143.46,94.1289]
[1642431479006,3.61496758,143.54,143.46,104.1989]
[1642431479608,23.9268,143.55,143.46,104.1989]
[1642431480408,23.9268,143.55,143.46,105.78099529]
[1642431480808,23.9268,143.55,143.46,112.04099529]
[1642431481215,3.61496758,143.56,143.46,112.04099529]
[1642431482009,24.2714,143.57,143.46,112.04099529]
[1642431482610,24.2714,143.57,143.46,122.49069529]
[1642431484411,24.2714,143.57,143.46,120.9086]
[1642431485822,24.2714,143.57,143.46,122.49069529]
[1642431486516,43.26114231,143.59,143.46,122.24069529]
[1642431486716,38.4336923,143.6,143.46,122.24069529]
[1642431487317,3.61496758,143.59,143.46,122.24069529]
[1642431487816,46.24485929,143.59,143.47,0.25]
[1642431488017,24.3639,143.58,143.48,10.07]
[1642431488216,24.3639,143.58,143.49,36.96393814]
[1642431488419,24.3639,143.58,143.49,70.53663814]
[1642431488617,24.3639,143.58,143.49,70.79663814]
[1642431488817,24.3639,143.58,143.49,76.79663814]
[1642431489017,24.3639,143.58,143.49,70.79663814]
[1642431489842,24.3639,143.58,143.49,76.79663814]
[1642431490044,24.3639,143.58,143.49,70.79663814]
[1642431490746,24.3639,143.58,143.49,76.79663814]
[1642431490948,24.3639,143.58,143.49,70.79663814]
[1642431491347,24.3639,143.58,143.49,76.79663814]
[1642431491949,24.3639,143.58,143.49,70.79663814]
[1642431492349,24.3639,143.58,143.5,1.58209529]
[1642431492553,24.3639,143.58,143.49,76.79663814]
[1642431492749,24.3639,143.58,143.49,70.79663814]
[1642431493354,24.3639,143.58,143.5,1.58209529]
[1642431493755,24.3639,143.58,143.51,0.25]
[1642431495053,24.3639,143.58,143.5,0.25]
[1642431496857,24.3639,143.58,143.51,80.31]
[1642431497256,3.61496758,143.62,143.52,0.25]
[1642431497456,24.5208,143.61,143.53,10.07]
[1642431498056,34.9693,143.61,143.53,10.07]
[1642431499056,34.9693,143.61,143.54,40.75601684]
[1642431499658,34.9693,143.61,143.53,10.07]
[1642431500658,24.5208,143.61,143.53,10.07]
[1642431500860,24.5208,143.61,143.54,0.25]
[1642431501264,24.5208,143.61,143.54,39.22141979]
[1642431502158,24.5208,143.61,143.53,10.07]
[1642431503760,34.9693,143.61,143.53,10.07]
[1642431504158,34.9693,143.61,143.53,50.40170325]
[1642431505459,34.9693,143.61,143.53,40.33170325]
[1642431507165,38.58426758,143.61,143.53,40.33170325]
[1642431507565,38.58426758,143.61,143.5,103.7737]
[1642431507764,38.58426758,143.61,143.51,0.25]
[1642431508565,38.58426758,143.61,143.51,35.52263864]
[1642431509067,38.58426758,143.61,143.51,37.10473393]
[1642431509266,7.58484222,143.6,143.51,37.10473393]
[1642431509467,23.0464,143.59,143.52,70.24]
[1642431509666,23.0464,143.59,143.52,80.31]
[1642431509865,23.0464,143.59,143.53,0.25]
[1642431510974,23.0464,143.59,143.52,80.31]
[1642431511772,24.55419472,143.59,143.52,80.31]
[1642431512775,23.0464,143.59,143.52,80.31]
[1642431512974,26.66136758,143.59,143.52,80.31]
[1642431517401,23.0464,143.59,143.52,80.31]
[1642431518900,26.66136758,143.59,143.52,80.31]
[1642431520500,26.66136758,143.59,143.52,10.07]
[1642431521102,26.66136758,143.59,143.53,0.25]
[1642431521303,26.66136758,143.59,143.53,10.32]
[1642431521500,3.61496758,143.59,143.53,11.90209529]
[1642431521701,3.61496758,143.59,143.53,88.14209529]
[1642431521901,3.61496758,143.59,143.54,45.00005759]
[1642431522103,3.61496758,143.59,143.55,10.07]
[1642431522301,3.61496758,143.59,143.55,10.32]
[1642431522701,27.52166758,143.62,143.55,10.32]
[1642431522902,3.61496758,143.62,143.55,10.32]
[1642431523302,10.56317056,143.61,143.55,10.32]
[1642431523702,3.61496758,143.62,143.55,10.32]
[1642431524606,45.429033,143.62,143.55,10.32]
[1642431526506,3.61496758,143.62,143.55,10.32]
[1642431528505,3.61496758,143.62,143.55,10.07]
[1642431528506,26.63936758,143.62,143.55,10.07]
[1642431528708,30.60858217,143.62,143.55,10.07]
[1642431529711,7.58418217,143.61,143.55,10.07]
[1642431530809,0.89601596,143.6,143.53,6.0]
[1642431531007,0.89601596,143.6,143.51,10.07]
[1642431531211,25.27051596,143.6,143.51,10.32]
[1642431531410,25.27051596,143.6,143.51,16.32]
[1642431531910,35.71991596,143.6,143.51,59.71130346]
[1642431532510,38.43886758,143.6,143.51,59.71130346]
[1642431533511,79.40525501,143.6,143.51,59.71130346]
[1642431535015,38.43886758,143.6,143.51,59.71130346]
[1642431535614,27.98946758,143.6,143.51,59.71130346]
[1642431535813,27.98946758,143.6,143.51,65.71130346]
[1642431536015,27.98946758,143.6,143.51,59.71130346]
[1642431536911,27.98946758,143.6,143.51,65.71130346]
[1642431539915,3.96881396,143.59,143.51,65.71130346]
[1642431540118,3.96881396,143.59,143.51,59.71130346]
[1642431540316,3.96881396,143.59,143.51,59.97130346]
[1642431540616,3.96881396,143.59,143.51,59.71130346]
[1642431540814,27.98946758,143.6,143.51,59.71130346]
[1642431540815,3.61496758,143.6,143.52,70.24]
[1642431541016,3.61496758,143.6,143.53,10.07]
[1642431541317,3.61496758,143.6,143.53,10.32]
[1642431541716,28.31656758,143.62,143.53,10.32]
[1642431542518,28.31656758,143.62,143.53,16.32]
[1642431542720,24.7016,143.62,143.53,10.32]
[1642431543921,24.7016,143.62,143.53,16.32]
[1642431544220,35.1495,143.62,143.53,16.32]
[1642431545423,38.76446758,143.62,143.53,16.32]
[1642431545625,38.76446758,143.62,143.53,6.0]
[1642431545823,38.76446758,143.62,143.52,32.9382]
[1642431546623,10.4497,143.6,143.52,32.9382]
[1642431548524,14.06466758,143.6,143.52,32.9382]
[1642431548933,3.61496758,143.6,143.52,32.9382]
[1642431549125,3.61496758,143.6,143.53,0.25]
[1642431549324,3.61496758,143.6,143.52,32.9382]
[1642431549525,3.61496758,143.61,143.52,32.9382]
[1642431549728,24.0948,143.6,143.52,32.9382]
[1642431550326,24.0948,143.6,143.53,0.25]
[1642431552634,24.0948,143.6,143.52,32.9382]
[1642431553235,24.0948,143.6,143.53,0.25]
[1642431553435,24.0948,143.6,143.53,10.32]
[1642431555340,24.0948,143.6,143.53,10.07]
[1642431559061,24.0948,143.6,143.54,0.25]
[1642431560162,24.0948,143.6,143.53,11.65207789]
[1642431560568,14.06276758,143.62,143.54,0.25]
[1642431560765,27.21126758,143.62,143.55,10.07]
[1642431560965,3.61496758,143.62,143.55,11.65207789]
[1642431561164,3.61496758,143.62,143.56,1.83207789]
[1642431561365,3.61496758,143.62,143.57,10.07]
[1642431561566,3.61496758,143.62,143.57,11.65207789]
[1642431561765,3.61496758,143.62,143.58,47.24719416]
[1642431561965,3.61496758,143.62,143.59,10.07]
[1642431562167,3.61496758,143.62,143.59,11.65207789]
[1642431562366,3.61496758,143.62,143.6,0.25]
[1642431562565,3.61496758,143.62,143.6,10.32]
[1642431562766,37.60754807,143.67,143.6,10.32]
[1642431563968,33.99258049,143.67,143.6,10.32]
[1642431565772,33.99258049,143.67,143.6,10.07]
[1642431565973,33.99258049,143.67,143.56,10.07]
[1642431566176,23.9556,143.66,143.56,10.07]
[1642431567575,10.4476,143.63,143.56,10.07]
[1642431567875,12.78030947,143.62,143.56,10.07]
[1642431568677,23.22820947,143.62,143.56,10.07]
[1642431577109,25.20753102,143.62,143.56,10.07]
[1642431579909,1.97932155,143.61,143.53,10.07]
[1642431580110,25.60142155,143.61,143.53,10.32]
[1642431581013,36.05012155,143.61,143.52,24.1114]
[1642431582211,36.05012155,143.61,143.53,0.25]
[1642431582611,36.05012155,143.61,143.52,24.1114]
[1642431582812,1.97932155,143.6,143.52,24.1114]
[1642431583111,10.4503,143.59,143.52,24.1114]
[1642431587218,12.42962155,143.59,143.52,24.1114]
[1642431590320,1.97932155,143.59,143.52,24.1114]
[1642431590521,1.97932155,143.59,143.52,25.69347789]
[1642431590923,1.97932155,143.59,143.52,24.1114]
[1642431591719,1.97932155,143.59,143.52,1.58207789]
[1642431591920,82.28932155,143.6,143.49,10.07]
[1642431592120,82.28932155,143.6,143.47,3.48790584]
[1642431592321,24.6321,143.59,143.47,1.90582795]
[1642431592522,10.07,143.58,143.47,1.90582795]
[1642431592723,10.07,143.58,143.47,1.40582795]
[1642431592925,1.97932155,143.56,143.45,24.9468]
[1642431593122,26.58062155,143.56,143.45,24.9468]
[1642431593524,10.4542,143.55,143.45,24.9468]
[1642431594325,22.9199,143.54,143.45,24.9468]
[1642431594525,22.9199,143.54,143.44,22.6393]
[1642431594726,22.9199,143.54,143.43,1.58207789]
[1642431594925,22.9199,143.54,143.44,0.25]
[1642431595529,10.4556,143.52,143.44,0.25]
[1642431595726,12.78030947,143.5,143.44,0.25]
[1642431596926,12.78030947,143.5,143.43,0.25]
[1642431597826,23.8336,143.51,143.43,0.25]
[1642431598829,67.34430856,143.51,143.42,69.35088777]
[1642431599029,67.34430856,143.51,143.42,79.42088777]
[1642431599529,23.8336,143.51,143.42,89.87488777]
[1642431599730,23.8336,143.51,143.43,1.58207789]
[1642431600331,23.8336,143.51,143.44,0.25]
[1642431600532,23.8336,143.51,143.43,0.25]
[1642431600731,10.07,143.56,143.43,12.28547789]
[1642431600929,23.556,143.55,143.44,23.5347]
[1642431601133,23.556,143.55,143.44,103.8447]
[1642431601435,23.556,143.55,143.45,1.83207789]
[1642431601632,63.171983,143.55,143.46,10.07]
[1642431601832,63.171983,143.55,143.47,0.25]
[1642431602074,63.171983,143.55,143.45,12.03387789]
[1642431602269,63.171983,143.55,143.45,10.4518]
[1642431602673,63.171983,143.55,143.44,33.6047]
[1642431603581,73.624883,143.55,143.44,33.6047]
[1642431604775,73.624883,143.55,143.45,0.25]
[1642431604976,34.0089,143.55,143.45,0.25]
[1642431605177,23.556,143.55,143.46,10.07]
[1642431605376,23.556,143.55,143.47,0.25]
[1642431605576,23.556,143.55,143.47,1.83207789]
[1642431605978,23.556,143.55,143.47,40.78204711]
[1642431606478,23.556,143.55,143.47,51.23234711]
[1642431606677,23.556,143.55,143.44,23.5347]
[1642431607083,25.31219958,143.55,143.44,23.5347]
[1642431607477,23.556,143.55,143.44,23.5347]
[1642431607680,35.66276333,143.54,143.45,35.26332008]
[1642431608183,22.6708,143.53,143.44,23.5347]
[1642431608579,22.6708,143.53,143.44,33.6047]
[1642431609179,22.6708,143.53,143.45,40.13427821]
[1642431609378,33.1254,143.53,143.49,18.28169871]
[1642431609579,33.1254,143.53,143.49,36.56339742]
[1642431611686,43.1954,143.53,143.49,36.56339742]
[1642431611887,44.95159958,143.53,143.49,36.56339742]
[1642431612086,10.4592,143.49,143.39,24.9149]
[1642431612289,16.5022,143.49,143.39,24.9149]
[1642431612788,9.8816533,143.48,143.39,24.9149]
[1642431612987,33.8018533,143.48,143.39,24.9149]
[1642431613387,43.8718533,143.48,143.36,38.18627218]
[1642431613589,10.4587,143.47,143.36,23.6423]
[1642431613987,33.8585,143.46,143.36,23.6423]
[1642431614187,29.5785,143.46,143.36,23.6423]
[1642431614690,10.07,143.45,143.36,23.6423]
[1642431615490,10.4616,143.43,143.36,23.6423]
[1642431615796,10.4616,143.43,143.35,22.7168]
[1642431615797,44.06860789,143.43,143.35,22.7168]
[1642431615989,44.06860789,143.43,143.36,0.25]
[1642431617793,44.06860789,143.43,143.31,114.5]
[1642431617990,24.2168,143.42,143.31,114.5]
[1642431618190,10.4646,143.39,143.31,114.5]
[1642431618390,16.7436,143.39,143.31,114.5]
[1642431619494,10.4646,143.39,143.31,114.5]
[1642431619790,11.93740874,143.38,143.3,62.03050812]
[1642431619994,11.93740874,143.38,143.3,38.56320812]
[1642431620193,10.4668,143.36,143.3,38.56320812]
[1642431621394,10.4668,143.36,143.27,1.58207789]
[1642431621595,10.4668,143.36,143.28,0.25]
[1642431621793,10.4668,143.36,143.27,1.58207789]
[1642431622195,20.5368,143.36,143.27,1.58207789]
[1642431622393,20.5368,143.36,143.26,22.5545]
[1642431625397,20.5368,143.36,143.27,0.25]
[1642431626797,10.07,143.36,143.27,0.25]
[1642431627000,23.4764,143.37,143.27,1.83207789]
[1642431627196,10.07,143.39,143.27,1.83207789]
[1642431627398,33.554,143.39,143.27,2.09207789]
[1642431628497,24.1271,143.4,143.27,12.55747789]
[1642431628698,24.1271,143.4,143.28,33.5847]
[1642431628898,24.1271,143.4,143.29,0.25]
[1642431629098,24.1271,143.4,143.29,1.83207789]
[1642431629297,467.52222689,143.41,143.3,41.44761364]
[1642431629698,467.52222689,143.41,143.31,10.4621]
[1642431630298,467.52222689,143.41,143.32,0.25]
[1642431630704,467.52222689,143.41,143.31,10.4621]
[1642431631099,467.52222689,143.41,143.32,0.25]
[1642431631500,467.52222689,143.41,143.31,34.8995]
[1642431632402,467.52222689,143.41,143.32,0.25]
[1642431633804,477.98542689,143.41,143.32,0.25]
[1642431634199,477.98542689,143.41,143.31,34.8995]
[1642431635199,477.98542689,143.41,143.31,24.4374]
[1642431635400,10.07,143.4,143.31,24.4374]
[1642431635603,43.4076,143.4,143.31,24.4374]
[1642431636203,43.4076,143.4,143.31,67.04757103]
[1642431637108,32.9435,143.4,143.31,67.04757103]
[1642431637304,22.8735,143.4,143.31,67.04757103]
[1642431638314,22.8735,143.4,143.31,24.4374]
[1642431638705,22.8735,143.4,143.31,34.8997]
[1642431639105,22.8735,143.4,143.32,0.25]
[1642431639805,468.18002807,143.41,143.32,35.18572014]
[1642431640406,468.18002807,143.41,143.32,10.4613]
[1642431640607,480.00622765,143.41,143.31,24.4374]
[1642431640812,480.00622765,143.41,143.26,34.8763]
[1642431641006,480.00622765,143.41,143.24,97.23592037]
[1642431641007,23.4244,143.4,143.24,97.23592037]
[1642431641214,79.85,143.39,143.25,23.0028]
[1642431641408,81.60619958,143.39,143.25,74.6577999]
[1642431642508,81.60619958,143.39,143.26,10.466]
[1642431642509,10.4667,143.36,143.26,10.466]
[1642431642709,11.40293336,143.36,143.26,10.716]
[1642431643336,11.40293336,143.36,143.26,0.25]
[1642431644038,24.8561,143.35,143.26,0.25]
[1642431644734,35.3237,143.35,143.26,0.25]
[1642431645536,35.3237,143.35,143.22,5.55309826]
[1642431645740,10.07,143.34,143.22,3.97102037]
[1642431645938,10.472,143.31,143.22,3.97102037]
[1642431646136,36.15747243,143.3,143.22,3.97102037]
[1642431647142,36.15747243,143.3,143.21,24.4243]
[1642431647339,36.15747243,143.3,143.22,0.25]
[1642431647538,36.15747243,143.3,143.21,24.4243]
[1642431647539,10.4724,143.29,143.21,24.4243]
[1642431648041,34.0914,143.29,143.21,24.4243]
[1642431648446,41.2264,143.29,143.21,24.4243]
[1642431648641,41.2264,143.29,143.19,23.1933]
[1642431648841,10.07,143.28,143.18,3.97102037]
[1642431649041,10.4749,143.25,143.18,3.97102037]
[1642431649244,9.3869442,143.24,143.18,3.97102037]
[1642431649444,9.3869442,143.24,143.16,26.51582037]
[1642431650044,9.3869442,143.24,143.17,0.62246555]
[1642431650651,10.4763,143.23,143.17,0.62246555]
[1642431652260,10.4763,143.23,143.17,0.37246555]
[1642431653262,20.5463,143.23,143.17,0.37246555]
[1642431656661,42.60672922,143.22,143.17,0.37246555]
[1642431657067,53.08382922,143.22,143.17,0.37246555]
[1642431657662,10.4771,143.22,143.17,0.37246555]
[1642431658663,34.08265927,143.21,143.17,0.37246555]
[1642431658862,10.4785,143.2,143.17,0.37246555]
[1642431659063,6.06439994,143.19,143.17,0.37246555]
[1642431661166,6.06439994,143.19,143.13,0.25]
[1642431663067,16.54359994,143.19,143.13,0.25]
[1642431663275,16.54359994,143.19,143.12,22.8597]
[1642431664069,23.64859994,143.19,143.12,22.8597]
[1642431665271,23.64859994,143.19,143.07,25.18476555]
[1642431665471,24.1887,143.18,143.07,49.25146555]
[1642431665671,10.4819,143.16,143.07,49.25146555]
[1642431666373,8.7090787,143.15,143.07,49.25146555]
[1642431666572,8.7090787,143.15,143.07,0.37246555]
[1642431666775,10.4832,143.14,143.07,0.37246555]
[1642431667072,8.7090787,143.15,143.07,0.37246555]
[1642431667875,32.5727787,143.15,143.07,0.37246555]
[1642431668074,34.3459,143.15,143.07,0.37246555]
[1642431669076,76.23486842,143.15,143.07,0.37246555]
[1642431671280,86.30486842,143.15,143.07,0.37246555]
[1642431673278,44.4159,143.15,143.07,0.37246555]
[1642431677181,114.1959,143.15,143.07,0.37246555]
[1642431677381,121.7009,143.15,143.07,0.37246555]
[1642431679083,121.7009,143.15,143.07,6.555e-05]
[1642431679084,123.45709958,143.15,143.07,6.555e-05]
[1642431679283,115.0,143.14,143.0,18.54372324]
[1642431679486,10.4899,143.1,143.0,3.97102037]
[1642431679687,24.8461,143.09,143.0,3.97102037]
[1642431680087,24.8461,143.09,143.01,45.01641614]
[1642431681688,10.4876,143.08,143.01,45.01641614]
[1642431682090,24.8461,143.09,143.02,0.25]
[1642431682289,24.8461,143.09,143.01,46.58676954]
[1642431682588,24.8461,143.09,143.02,0.25]
[1642431682989,34.3338,143.12,143.02,0.25]
[1642431683189,22.6162,143.11,143.01,45.01641614]
[1642431683390,10.4863,143.1,143.01,45.01641614]
[1642431684625,10.4863,143.1,143.02,0.25]
[1642431687023,10.4863,143.1,143.01,45.01641614]
[1642431693930,10.4878,143.08,143.01,45.01641614]
[1642431695731,10.4878,143.08,142.97,24.52922037]
[1642431695932,23.8123,143.07,142.98,23.0616]
[1642431696131,10.4899,143.05,142.98,23.0616]
[1642431696733,10.4899,143.05,142.99,47.33430069]
[1642431699431,34.3008,143.07,142.99,47.33430069]
[1642431700035,23.8123,143.07,142.99,47.33430069]
[1642431700233,10.07,143.11,142.99,57.82160069]
[1642431700434,10.487,143.09,143.0,23.6125]
[1642431700834,10.487,143.09,143.0,23.3625]
[1642431701434,22.6527,143.1,143.0,33.8491]
[1642431701633,22.6527,143.1,143.01,0.25]
[1642431702231,22.6527,143.1,143.0,23.3625]
[1642431703532,33.1387,143.1,143.01,10.4857]
[1642431704433,33.1387,143.1,143.0,23.3625]
[1642431705234,33.1387,143.1,143.0,33.8491]
[1642431705434,33.1387,143.1,143.01,0.25]
[1642431708337,33.1387,143.1,143.0,37.82012037]
[1642431708537,33.1387,143.1,143.0,27.33352037]
[1642431708737,43.2087,143.1,143.0,27.33352037]
[1642431708938,44.96489958,143.1,143.0,27.33352037]
[1642431709337,69.78,143.09,143.0,3.97102037]
[1642431709537,10.4899,143.07,143.0,3.97102037]
[1642431709739,17.8989,143.07,143.0,3.97102037]
[1642431710340,4.96387141,143.06,143.0,3.97102037]
[1642431710541,10.4916,143.05,143.0,3.97102037]
[1642431711040,10.4916,143.05,142.98,3.97102037]
[1642431712243,10.4916,143.05,142.96,46.52388528]
[1642431712842,12.24779958,143.05,142.94,28.9169823]
[1642431713043,10.4937,143.01,142.94,28.9169823]
[1642431713246,17.5037,143.01,142.94,4.3206823]
[1642431713450,17.5037,143.01,142.97,1.98928378]
[1642431713850,55.62060092,143.01,142.97,1.98928378]
[1642431714450,125.40060092,143.01,142.97,1.98928378]
[1642431714853,135.47060092,143.01,142.95,1.98928378]
[1642431715050,97.3537,143.01,142.95,1.98928378]
[1642431715753,97.3537,143.01,142.94,0.34966193]
[1642431716551,10.4969,142.99,142.94,0.34966193]
[1642431717555,80.2783,142.97,142.94,0.34966193]
[1642431717754,10.11327776,142.95,142.94,0.34966193]
[1642431719580,10.4985,142.95,142.94,0.348875]
[1642431720182,10.4985,142.95,142.94,7.5e-05]
[1642431720583,51.05096942,142.95,142.88,1.98928378]
[1642431721185,51.05096942,142.95,142.86,36.87285079]
[1642431721884,10.4985,142.95,142.86,36.87285079]
[1642431722084,10.4985,142.95,142.86,38.44762115]
[1642431722284,10.4985,142.95,142.86,36.87285079]
[1642431722885,10.4985,142.95,142.87,0.25]
[1642431723685,10.4985,142.95,142.86,36.87285079]
[1642431724585,10.4985,142.95,142.85,24.81838378]
[1642431724986,35.1109,142.95,142.85,24.81838378]
[1642431725385,35.1109,142.95,142.85,1.98928378]
[1642431725587,45.1809,142.95,142.85,1.98928378]
[1642431726190,69.78,142.94,142.84,12.60688378]
[1642431726391,10.5,142.91,142.84,12.60688378]
[1642431726691,17.73425508,142.91,142.84,12.60688378]
[1642431726891,10.07,142.93,142.84,12.60688378]
[1642431727092,10.07,142.93,142.84,10.6176]
[1642431727294,10.07,142.93,142.85,0.25]
[1642431727692,20.569,142.93,142.84,10.6176]
[1642431727892,42.54473789,142.92,142.84,10.6176]
[1642431728292,42.54473789,142.92,142.84,12.60688378]
[1642431728691,42.54473789,142.92,142.85,0.25]
[1642431729695,10.5002,142.91,142.85,0.25]
[1642431730299,10.5002,142.91,142.84,10.6176]
[1642431731496,65.28633789,142.92,142.84,10.6176]
[1642431731894,65.28633789,142.92,142.85,0.25]
[1642431732100,65.28633789,142.92,142.84,10.6176]
[1642431732495,75.78563789,142.92,142.84,10.6176]
[1642431738530,75.78563789,142.92,142.85,0.25]
[1642431738729,69.78,142.91,142.84,12.60688378]
[1642431739031,85.85563789,142.92,142.84,1.98928378]
[1642431739032,80.2819,142.89,142.84,1.98928378]
[1642431739229,69.78,142.87,142.84,1.98928378]
[1642431739429,13.10219997,142.86,142.84,1.98928378]
[1642431739630,72.77967874,142.85,142.82,0.22208378]
[1642431739830,79.85,142.84,142.82,0.22208378]
[1642431740231,90.3569,142.84,142.82,0.22208378]
[1642431740431,125.87,142.83,142.82,0.22208378]
[1642431740631,69.78,142.82,142.79,3.97102037]
[1642431740834,10.07,142.81,142.73,3.97102037]
[1642431741034,125.87,142.8,142.73,3.97102037]
[1642431741233,69.78,142.77,142.73,2.037e-05]
[1642431741436,135.94,142.76,142.73,2.037e-05]
[1642431741737,69.78,142.72,142.63,9.6906214]
[1642431741937,125.87,142.67,142.63,9.6906214]
[1642431742137,125.87,142.67,142.62,5.95332427]
[1642431742138,10.07,142.66,142.62,5.95332427]
[1642431742335,1.75619958,142.71,142.62,5.95332427]
[1642431742336,10.5173,142.68,142.62,5.95332427]
[1642431743136,10.5173,142.68,142.57,1.57477036]
[1642431743437,10.5173,142.68,142.58,40.65200036]
[1642431743838,10.5173,142.68,142.58,42.22677072]
[1642431744042,10.07,142.69,142.58,52.74427072]
[1642431744341,10.07,142.69,142.59,0.25]
[1642431744739,10.07,142.69,142.6,1.57477036]
[1642431745240,10.07,142.69,142.62,10.5144]
[1642431745438,10.07,142.69,142.63,41.17142389]
[1642431745638,10.07,142.69,142.63,41.42142389]
[1642431745838,10.07,142.69,142.64,0.25]
[1642431746640,59.2338,142.74,142.64,10.7631]
[1642431746843,10.07,142.72,142.64,10.7631]
[1642431747041,35.0368,142.8,142.64,10.7631]
[1642431747042,150.2471,142.79,142.65,1.57477036]
[1642431747242,10.07,142.76,142.66,0.25]
[1642431747449,52.17457164,142.78,142.66,0.25]
[1642431747643,52.17457164,142.78,142.66,1.82477036]
[1642431748276,42.10457164,142.78,142.66,1.82477036]
[1642431748644,42.10457164,142.78,142.69,10.5082]
[1642431749144,10.07,142.77,142.66,0.25]
[1642431749346,10.07,142.77,142.65,0.25]
[1642431750644,20.5804,142.77,142.65,12.33697036]
[1642431751145,20.5804,142.77,142.65,9.1622]
[1642431752247,20.5804,142.77,142.66,0.25]
[1642431752546,20.5804,142.77,142.68,10.5104]
[1642431753349,10.07,142.77,142.68,10.5104]
[1642431753749,10.07,142.77,142.69,0.25]
[1642431753949,456.32535631,142.79,142.69,1.82477036]
[1642431754151,456.32535631,142.79,142.72,10.5066]
[1642431754748,45.18260175,142.78,142.72,10.5066]
[1642431755349,45.18260175,142.78,142.7,10.5085]
[1642431755550,45.18260175,142.78,142.67,10.07]
[1642431755850,45.18260175,142.78,142.68,0.25]
[1642431756050,45.18260175,142.78,142.67,10.07]
[1642431756452,45.18260175,142.78,142.68,0.25]
[1642431756651,10.5105,142.77,142.68,10.7605]
[1642431758553,10.5105,142.77,142.68,10.5105]
[1642431758753,10.5105,142.77,142.66,10.5116]
[1642431759153,10.5105,142.77,142.63,10.07]
[1642431759357,10.07,142.76,142.61,10.07]